[Event "RUS-ch Rapid Men 2018"]
[Site "Sochi"]
[Date "2018.10.06"]
[Round "10"]
[White "Belyakov, Bogdan"]
[Black "Truskavetsky, Alexandr"]
[Result "1-0"]
[ECO "B18"]
[WhiteElo "2458"]
[BlackElo "2393"]
[Annotator "ChessBase"]
[PlyCount "85"]
[EventDate "2018.10.05"]
[EventType "swiss"]
[EventCountry "RUS"]
[SourceTitle "playchess.com"]
[Source "ChessBase"]
[SourceQuality "1"]
[TimeControl "900+10"]

1. e4 {[%emt 0:00:00]} c6 {[%emt 0:00:00]} 2. d4 {[%emt 0:00:00]} d5 {[%emt 0:00:00]} 3. Nc3 {[%emt 0:00:00]} dxe4 {[%emt 0:00:00]} 4. Nxe4 {[%emt 0:00:00]} Bf5 {[%emt 0:00:05]} 5. Nc5 {[%emt 0:00:00]} Qc8 {[%emt 0:01:31]} 6. Nf3 {[%emt 0:00:17]} Nf6 {[%emt 0:00:48]} 7. Be2 {[%emt 0:01:46]} e6 {[%emt 0:00:21]} 8. Nd3 {[%emt 0:00:16]} Bd6 {[%emt 0:00:35]} 9. O-O {[%emt 0:00:13]} O-O {[%emt 0:00:38]} 10. c4 {[%emt 0:00:19]} Nbd7 {[%emt 0:00:26]} 11. b3 {[%emt 0:00:02]} Qc7 {[%emt 0:01:04]} 12. Bb2 {[%emt 0:00:08]} Rfd8 {[%emt 0:02:04]} 13. Qc1 {[%emt 0:00:04]} h6 {[%emt 0:01:18]} 14. h3 {[%emt 0:00:23]} a5 {[%emt 0:00:55]} 15. a3 {[%emt 0:00:08]} Nf8 {[%emt 0:00:36]} 16. Re1 {[%emt 0:00:52]} Ng6 {[%emt 0:00:17]} 17. Bf1 {[%emt 0:00:05]} Be4 {[%emt 0:00:43]} 18. Nde5 {[%emt 0:00:27]} c5 {[%emt 0:00:18]} 19. Nxg6 {[%emt 0:00:55]} Bxg6 {[%emt 0:00:06]} 20. dxc5 {[%emt 0:00:08]} Bf4 {[%emt 0:00:41]} 21. Be5 {[%emt 0:01:28]} Bxe5 {[%emt 0:00:26]} 22. Nxe5 {[%emt 0:00:03]} Be4 {[%emt 0:00:51]} 23. Ng4 {[%emt 0:01:15]} Nxg4 {[%emt 0:00:45]} 24. hxg4 {[%emt 0:00:02]} Bg6 {[%emt 0:00:07]} 25. Qe3 {[%emt 0:00:06]} Qe7 {[%emt 0:00:22]} 26. b4 {[%emt 0:00:10]} Qf6 {[%emt 0:01:22]} 27. Rad1 {[%emt 0:00:28]} axb4 {[%emt 0:00:56]} 28. axb4 {[%emt 0:00:06]} Qb2 {[%emt 0:00:47]} 29. b5 {[%emt 0:00:09]} Qb4 {[%emt 0:00:16]} 30. Rxd8+ {[%emt 0:02:21]} Rxd8 {[%emt 0:00:01]} 31. Ra1 {[%emt 0:00:03]} Qb2 {[%emt 0:00:47]} 32. Re1 {[%emt 0:00:51]} Qb4 {[%emt 0:00:06]} 33. Qe5 {[%emt 0:01:23]} Rc8 {[%emt 0:00:11]} 34. Rd1 {[%emt 0:00:10]} Rxc5 {[%emt 0:00:28]} 35. Qb8+ {[%emt 0:00:08]} Kh7 {[%emt 0:00:01]} 36. Qxb7 {[%emt 0:00:16]} Rg5 {[%emt 0:00:22]} 37. Qf3 {[%emt 0:00:25]} h5 {[%emt 0:00:17]} 38. gxh5 {[%emt 0:00:08]} Bxh5 {[%emt 0:00:16]} 39. Qe3 {[%emt 0:00:26]} Qe7 {[%emt 0:00:11]} 40. Rb1 {[%emt 0:00:11]} Qf6 {[%emt 0:00:17]} 41. b6 {[%emt 0:00:10]} Bf3 {[%emt 0:00:06]} 42. b7 {[%emt 0:00:46]} Bxg2 {[%emt 0:00:21]} 43. Qxg5 {[%emt 0:00:04]} 1-0

[Event "RUS-ch Rapid Men 2018"]
[Site "Sochi"]
[Date "2018.10.06"]
[Round "10"]
[White "Sharafiev, Azat"]
[Black "Shcherbakov, Ruslan"]
[Result "1/2-1/2"]
[ECO "A04"]
[WhiteElo "2432"]
[BlackElo "2516"]
[Annotator "RC"]
[PlyCount "102"]
[EventDate "2018.10.05"]
[EventType "swiss"]
[EventCountry "RUS"]
[SourceTitle "playchess.com"]
[Source "ChessBase"]
[SourceQuality "1"]
[TimeControl "900+10"]

1. Nf3 {[%emt 0:00:00]} c5 {[%emt 0:00:00]} 2. c4 {[%emt 0:00:02]} g6 {[%emt 0:00:04]} 3. d4 {[%emt 0:00:19]} cxd4 {[%emt 0:00:04]} 4. Nxd4 {[%emt 0:00:02]} Nc6 {[%emt 0:00:05]} 5. e4 {[%emt 0:00:23]} Nf6 {[%emt 0:00:04]} 6. Nc3 {[%emt 0:00:01]} d6 {[%emt 0:00:02]} 7. Be2 {[%emt 0:00:30]} Nxd4 {[%emt 0:00:02]} 8. Qxd4 {[%emt 0:00:01]} Bg7 {[%emt 0:00:02]} 9. Be3 {[%emt 0:00:06]} O-O {[%emt 0:00:04]} 10. Qd2 {[%emt 0:00:01]} a5 {[%emt 0:00:03]} 11. O-O {[%emt 0:00:36]} a4 {[%emt 0:00:03]} 12. f3 {[%emt 0:00:07]} Qa5 {[%emt 0:00:02]} 13. Rab1 {[%emt 0:00:44]} Be6 {[%emt 0:00:19]} 14. Rfc1 {[%emt 0:00:02]} Rfc8 {[%emt 0:00:12]} 15. b4 {[%emt 0:00:06]} axb3 {[%emt 0:00:03]} 16. axb3 {[%emt 0:00:01]} Qb4 {[%emt 0:00:01]} 17. Nd5 {[%emt 0:03:20]} Qxd2 {[%emt 0:01:11]} 18. Bxd2 {[%emt 0:00:02]} Nxd5 {[%emt 0:01:40]} 19. cxd5 {[%emt 0:00:13]} Bd4+ {[%emt 0:00:30]} 20. Kf1 {[%emt 0:00:10]} Bd7 {[%emt 0:00:02]} 21. Rxc8+ {[%emt 0:00:39]} Rxc8 {[%emt 0:01:14]} 22. Rc1 {[%emt 0:00:07]} Rxc1+ {[%emt 0:00:19]} 23. Bxc1 {[%emt 0:00:01]} f5 {[%emt 0:00:02]} 24. Bd3 {[%emt 0:01:00]} fxe4 {[%emt 0:00:56]} 25. Bxe4 {[%emt 0:00:11]} Bb5+ {[%emt 0:00:20]} 26. Ke1 {[%emt 0:00:02]} Kf7 {[%emt 0:00:35]} 27. h4 {[%emt 0:00:29]} b6 {[%emt 0:01:03]} 28. g4 {[%emt 0:00:58]} h5 {[%emt 0:00:35]} 29. g5 {[%emt 0:01:15]} Bd7 {[%emt 0:01:34]} 30. Ke2 {[%emt 0:00:28]} e6 {[%emt 0:02:20]} 31. Be3 {[%emt 0:01:49]} Bc5 {[%emt 0:00:13]} 32. b4 {[%emt 0:00:50]} Bxb4 {[%emt 0:01:09]} 33. Bxb6 {[%emt 0:00:10]} exd5 {[%emt 0:00:11]} 34. Bxd5+ {[%emt 0:00:03]} Be6 {[%emt 0:00:09]} 35. Be4 {[%emt 0:01:30]} Bc4+ {[%emt 0:00:08]} 36. Kf2 {[%emt 0:00:07]} Bc3 {[%emt 0:00:42]} 37. Bc2 {[%emt 0:00:52]} d5 {[%emt 0:01:07]} 38. Bc7 {[%emt 0:00:10]} Bd4+ {[%emt 0:00:55]} 39. Kg3 {[%emt 0:00:16]} Be3 {[%emt 0:00:18]} 40. f4 {[%emt 0:00:25]} d4 {[%emt 0:00:03]} 41. Kf3 {[%emt 0:01:23]} Be6 {[%emt 0:00:01]} 42. Be5 {[%emt 0:00:44]} Bg4+ {[%emt 0:00:07]} 43. Kg3 {[%emt 0:00:10]} Be2 {[%emt 0:00:02]} 44. Bb3+ {[%emt 0:00:29]} Kf8 {[%emt 0:00:31]} 45. f5 {[%emt 0:00:10]} gxf5 {[%emt 0:00:17]} 46. g6 {[%emt 0:00:01]} Bh6 {[%emt 0:00:18]} 47. Bxd4 {[%emt 0:00:20]} f4+ {[%emt 0:00:45]} 48. Kf2 {[%emt 0:00:11]} Bd3 {[%emt 0:00:08]} 49. Bf7 {[%emt 0:00:17]} Be4 {[%emt 0:00:12]} 50. Bc5+ {[%emt 0:00:50]} Kg7 {[%emt 0:00:02]} 51. Bd4+ {[%emt 0:00:01]} Kf8 {[%emt 0:00:01]} 1/2-1/2

[Event "RUS-ch Rapid Men 2018"]
[Site "Sochi"]
[Date "2018.10.06"]
[Round "10"]
[White "Tsoi, Dmitry"]
[Black "Lugovskoy, Maxim"]
[Result "0-1"]
[ECO "A06"]
[WhiteElo "2429"]
[BlackElo "2428"]
[Annotator "NA"]
[PlyCount "82"]
[EventDate "2018.10.05"]
[EventType "swiss"]
[EventCountry "RUS"]
[SourceTitle "playchess.com"]
[Source "ChessBase"]
[SourceQuality "1"]
[TimeControl "900+10"]

1. c4 {[%emt 0:00:00]} e6 {[%emt 0:00:00]} 2. Nf3 {[%emt 0:00:00]} d5 {[%emt 0:00:00]} 3. e3 {[%emt 0:00:00]} Nf6 {[%emt 0:00:03]} 4. b3 {[%emt 0:00:00]} c5 {[%emt 0:00:02]} 5. Bb2 {[%emt 0:00:00]} Nc6 {[%emt 0:00:01]} 6. g3 {[%emt 0:00:21]} d4 {[%emt 0:00:06]} 7. exd4 {[%emt 0:00:06]} cxd4 {[%emt 0:00:01]} 8. Bg2 {[%emt 0:00:02]} Be7 {[%emt 0:00:04]} 9. O-O {[%emt 0:00:03]} O-O {[%emt 0:00:02]} 10. Re1 {[%emt 0:00:04]} Re8 {[%emt 0:00:08]} 11. d3 {[%emt 0:00:30]} Bf8 {[%emt 0:00:13]} 12. Ne5 {[%emt 0:00:42]} Nxe5 {[%emt 0:00:06]} 13. Rxe5 {[%emt 0:00:02]} Bd6 {[%emt 0:00:15]} 14. Re1 {[%emt 0:01:44]} e5 {[%emt 0:00:01]} 15. Na3 {[%emt 0:00:36]} Bg4 {[%emt 0:03:35]} 16. Qd2 {[%emt 0:00:17]} a5 {[%emt 0:00:32]} 17. Nc2 {[%emt 0:00:02]} Qd7 {[%emt 0:00:02]} 18. a3 {[%emt 0:00:07]} b5 {[%emt 0:01:13]} 19. b4 {[%emt 0:00:54]} bxc4 {[%emt 0:00:13]} 20. dxc4 {[%emt 0:00:02]} Rab8 {[%emt 0:00:49]} 21. Rab1 {[%emt 0:04:36]} axb4 {[%emt 0:00:07]} 22. axb4 {[%emt 0:00:01]} Qf5 {[%emt 0:00:28]} 23. c5 {[%emt 0:00:19]} Bf8 {[%emt 0:00:09]} 24. Bxd4 {[%emt 0:02:46]} Rbd8 {[%emt 0:01:33]} 25. c6 {[%emt 0:01:04]} exd4 {[%emt 0:01:30]} 26. Rxe8 {[%emt 0:00:13]} Rxe8 {[%emt 0:00:28]} 27. Na3 {[%emt 0:01:02]} d3 {[%emt 0:01:41]} 28. Nc4 {[%emt 0:01:29]} Re2 {[%emt 0:00:08]} 29. Qf4 {[%emt 0:00:01]} Qxf4 {[%emt 0:00:26]} 30. gxf4 {[%emt 0:00:01]} d2 {[%emt 0:00:44]} 31. Nxd2 {[%emt 0:00:02]} Rxd2 {[%emt 0:00:03]} 32. b5 {[%emt 0:00:17]} Bc5 {[%emt 0:00:08]} 33. b6 {[%emt 0:00:02]} Bxf2+ {[%emt 0:00:30]} 34. Kf1 {[%emt 0:00:14]} Bxb6 {[%emt 0:00:55]} 35. Rxb6 {[%emt 0:00:03]} h5 {[%emt 0:00:16]} 36. c7 {[%emt 0:01:48]} Rc2 {[%emt 0:00:04]} 37. Bc6 {[%emt 0:00:02]} Kh7 {[%emt 0:00:09]} 38. Ke1 {[%emt 0:00:09]} h4 {[%emt 0:00:22]} 39. h3 {[%emt 0:00:06]} Bxh3 {[%emt 0:00:08]} 40. Kd1 {[%emt 0:00:01]} Rc5 {[%emt 0:00:05]} 41. Kd2 {[%emt 0:00:05]} Bd7 {[%emt 0:00:13]} 0-1

[Event "RUS-ch Rapid Men 2018"]
[Site "Sochi"]
[Date "2018.10.06"]
[Round "10"]
[White "Malakhov, Igor"]
[Black "Panarin, Mikhail"]
[Result "1-0"]
[ECO "B47"]
[WhiteElo "2423"]
[BlackElo "2562"]
[Annotator "ChessBase"]
[PlyCount "92"]
[EventDate "2018.10.05"]
[EventType "swiss"]
[EventCountry "RUS"]
[SourceTitle "playchess.com"]
[Source "ChessBase"]
[SourceQuality "1"]
[TimeControl "900+10"]

1. e4 {[%emt 0:00:00]} c5 {[%emt 0:00:00]} 2. Nf3 {[%emt 0:00:00]} e6 {[%emt 0:00:00]} 3. d4 {[%emt 0:00:00]} cxd4 {[%emt 0:00:00]} 4. Nxd4 {[%emt 0:00:00]} Nc6 {[%emt 0:00:00]} 5. Nc3 {[%emt 0:00:00]} Qc7 {[%emt 0:00:00]} 6. Nxc6 {[%emt 0:00:24]} Qxc6 {[%emt 0:00:07]} 7. Bd3 {[%emt 0:00:15]} a6 {[%emt 0:00:02]} 8. O-O {[%emt 0:00:03]} b5 {[%emt 0:00:07]} 9. e5 {[%emt 0:00:29]} Bb7 {[%emt 0:00:01]} 10. Be4 {[%emt 0:00:01]} Qc7 {[%emt 0:00:02]} 11. Qf3 {[%emt 0:00:23]} Rb8 {[%emt 0:02:32]} 12. Bxb7 {[%emt 0:01:02]} Rxb7 {[%emt 0:00:18]} 13. Bf4 {[%emt 0:00:04]} Ne7 {[%emt 0:00:04]} 14. h4 {[%emt 0:01:18]} h5 {[%emt 0:03:09]} 15. Ne4 {[%emt 0:00:50]} Nf5 {[%emt 0:00:03]} 16. g3 {[%emt 0:00:13]} Nd4 {[%emt 0:01:02]} 17. Qd1 {[%emt 0:01:03]} Nc6 {[%emt 0:00:17]} 18. Nd6+ {[%emt 0:01:27]} Bxd6 {[%emt 0:00:02]} 19. exd6 {[%emt 0:00:01]} Qd8 {[%emt 0:00:08]} 20. Bg5 {[%emt 0:00:28]} f6 {[%emt 0:00:01]} 21. Be3 {[%emt 0:00:01]} Kf7 {[%emt 0:00:02]} 22. c3 {[%emt 0:00:08]} Qg8 {[%emt 0:00:08]} 23. b4 {[%emt 0:00:11]} Qh7 {[%emt 0:00:09]} 24. a4 {[%emt 0:00:02]} Rc8 {[%emt 0:00:24]} 25. axb5 {[%emt 0:00:06]} axb5 {[%emt 0:00:01]} 26. Qf3 {[%emt 0:00:18]} Qf5 {[%emt 0:02:29]} 27. Qxf5 {[%emt 0:00:01]} exf5 {[%emt 0:00:01]} 28. f4 {[%emt 0:00:01]} Nd8 {[%emt 0:00:08]} 29. Ra3 {[%emt 0:00:10]} Rc4 {[%emt 0:01:21]} 30. Rd1 {[%emt 0:00:05]} Rb8 {[%emt 0:01:09]} 31. Kf2 {[%emt 0:00:31]} Rbc8 {[%emt 0:00:53]} 32. Rd3 {[%emt 0:00:08]} Ke6 {[%emt 0:00:29]} 33. Bd4 {[%emt 0:00:58]} Nb7 {[%emt 0:02:04]} 34. Re3+ {[%emt 0:00:11]} Kxd6 {[%emt 0:00:02]} 35. Ra7 {[%emt 0:00:05]} Kc7 {[%emt 0:00:53]} 36. Re7 {[%emt 0:00:04]} Rg8 {[%emt 0:00:05]} 37. Ke2 {[%emt 0:01:32]} Rc6 {[%emt 0:00:15]} 38. Kd3 {[%emt 0:00:12]} Kd8 {[%emt 0:00:47]} 39. Rxd7+ {[%emt 0:00:40]} Kxd7 {[%emt 0:00:08]} 40. Rxb7+ {[%emt 0:00:01]} Ke6 {[%emt 0:00:36]} 41. Rxb5 {[%emt 0:00:01]} Ra8 {[%emt 0:00:00]} 42. Rb7 {[%emt 0:00:05]} g6 {[%emt 0:00:21]} 43. Rg7 {[%emt 0:00:37]} Ra2 {[%emt 0:00:01]} 44. Bc5 {[%emt 0:00:01]} Rxc5 {[%emt 0:01:07]} 45. bxc5 {[%emt 0:00:01]} Rg2 {[%emt 0:00:01]} 46. c6 {[%emt 0:00:12]} Kd5 {Ke4+} 1-0

[Event "RUS-ch Rapid Men 2018"]
[Site "Sochi"]
[Date "2018.10.06"]
[Round "10"]
[White "Ofitserian, Boris"]
[Black "Triapishko, Alexandr"]
[Result "0-1"]
[ECO "A48"]
[WhiteElo "2411"]
[BlackElo "2508"]
[Annotator "ChessBase"]
[PlyCount "50"]
[EventDate "2018.10.05"]
[EventType "swiss"]
[EventCountry "RUS"]
[SourceTitle "playchess.com"]
[Source "ChessBase"]
[SourceQuality "1"]
[TimeControl "900+10"]

1. d4 {[%emt 0:00:00]} Nf6 {[%emt 0:00:10]} 2. Nf3 {[%emt 0:00:00]} g6 {[%emt 0:00:22]} 3. c4 {[%emt 0:00:05]} Bg7 {[%emt 0:00:03]} 4. Nc3 {[%emt 0:00:02]} d5 {[%emt 0:00:04]} 5. cxd5 {[%emt 0:02:09]} Nxd5 6. Bd2 O-O {[%emt 0:03:04]} 7. e4 {[%emt 0:00:14]} Nxc3 {[%emt 0:00:03]} 8. Bxc3 {[%emt 0:00:01]} Nd7 {[%emt 0:00:06]} 9. Be2 {[%emt 0:00:42]} Nb6 {[%emt 0:02:38]} 10. a4 {[%emt 0:01:40]} f5 {[%emt 0:01:41]} 11. Qb3+ {[%emt 0:01:37]} e6 {[%emt 0:00:32]} 12. exf5 {[%emt 0:00:46]} Rxf5 {[%emt 0:02:20]} 13. a5 {[%emt 0:01:20]} Nd5 {[%emt 0:00:59]} 14. O-O {[%emt 0:00:07]} b6 {[%emt 0:00:21]} 15. Rfe1 {[%emt 0:01:36]} Bb7 {[%emt 0:00:32]} 16. a6 {[%emt 0:01:37]} Bc6 {[%emt 0:00:22]} 17. Bd2 {[%emt 0:00:11]} Qd6 {[%emt 0:01:26]} 18. Rac1 {[%emt 0:00:57]} Raf8 {[%emt 0:00:14]} 19. Qc4 {[%emt 0:01:12]} Ba8 {[%emt 0:00:31]} 20. Ng5 {[%emt 0:01:36]} Rxf2 {[%emt 0:02:21]} 21. Ne4 {[%emt 0:01:34]} Bxd4 {[%emt 0:00:11]} 22. Kh1 {[%emt 0:00:40]} Ne3 {[%emt 0:00:14]} 23. Bxe3 {[%emt 0:00:25]} Bxe3 {[%emt 0:00:12]} 24. Rcd1 {[%emt 0:00:15]} Bxe4 {[%emt 0:00:19]} 25. Qxe4 {[%emt 0:00:04]} Rxe2 {[%emt 0:00:06]} 0-1

[Event "RUS-ch Rapid Men 2018"]
[Site "Sochi"]
[Date "2018.10.06"]
[Round "10"]
[White "Sergeyev, Alexander"]
[Black "Gutenev, Alexander"]
[Result "0-1"]
[ECO "D80"]
[WhiteElo "2397"]
[BlackElo "2456"]
[Annotator "ChessBase"]
[PlyCount "80"]
[EventDate "2018.10.05"]
[EventType "swiss"]
[EventCountry "RUS"]
[SourceTitle "playchess.com"]
[Source "ChessBase"]
[SourceQuality "1"]
[TimeControl "900+10"]

1. d4 {[%emt 0:00:00]} Nf6 {[%emt 0:00:00]} 2. c4 {[%emt 0:00:00]} g6 {[%emt 0:00:00]} 3. Nc3 {[%emt 0:00:00]} d5 {[%emt 0:00:00]} 4. Bg5 {[%emt 0:00:00]} Ne4 {[%emt 0:00:00]} 5. Bh4 {[%emt 0:00:00]} Nxc3 {[%emt 0:00:00]} 6. bxc3 {[%emt 0:00:01]} dxc4 {[%emt 0:00:01]} 7. e3 {[%emt 0:00:01]} Be6 {[%emt 0:00:02]} 8. Ne2 {[%emt 0:00:39]} Bh6 {[%emt 0:00:02]} 9. Qb1 {[%emt 0:02:03]} b6 {[%emt 0:01:19]} 10. Bg3 {[%emt 0:00:53]} Qd5 {[%emt 0:03:21]} 11. e4 {[%emt 0:02:47]} Qa5 {[%emt 0:00:02]} 12. Bxc7 {[%emt 0:00:44]} Na6 {[%emt 0:04:16]} 13. Be5 {[%emt 0:01:49]} f6 {[%emt 0:00:04]} 14. Bg3 {[%emt 0:00:03]} Rd8 {[%emt 0:00:02]} 15. a4 {[%emt 0:01:24]} Nc5 {[%emt 0:01:00]} 16. Qb5+ {[%emt 0:00:43]} Qxb5 {[%emt 0:00:01]} 17. axb5 {[%emt 0:00:02]} Nxe4 {[%emt 0:00:06]} 18. f3 {[%emt 0:00:49]} Bd2+ {[%emt 0:00:23]} 19. Kd1 {[%emt 0:00:01]} Bxc3 {[%emt 0:00:16]} 20. Rxa7 {[%emt 0:00:21]} Nxg3 {[%emt 0:00:07]} 21. hxg3 {[%emt 0:00:02]} Bxd4 {[%emt 0:00:15]} 22. Nxd4 {[%emt 0:00:15]} Rxd4+ {[%emt 0:00:01]} 23. Kc2 {[%emt 0:00:03]} Kf7 {[%emt 0:00:24]} 24. Rb7 {[%emt 0:00:42]} Rd6 {[%emt 0:00:55]} 25. Kc3 {[%emt 0:00:08]} h5 {[%emt 0:00:15]} 26. Rh4 {[%emt 0:00:25]} Rc8 {[%emt 0:00:18]} 27. g4 {[%emt 0:03:43]} Rd1 {[%emt 0:00:17]} 28. gxh5 {[%emt 0:01:05]} Rxf1 {[%emt 0:00:42]} 29. hxg6+ {[%emt 0:00:04]} Kxg6 {[%emt 0:00:03]} 30. Rxe7 {[%emt 0:00:06]} Re1 {[%emt 0:01:56]} 31. Reh7 {[%emt 0:00:53]} Bg8 {[%emt 0:00:30]} 32. R7h6+ {[%emt 0:00:14]} Kg7 {[%emt 0:00:06]} 33. R6h5 {[%emt 0:00:09]} Re3+ {[%emt 0:00:09]} 34. Kd2 {[%emt 0:00:17]} Re5 {[%emt 0:00:58]} 35. Rg4+ {[%emt 0:00:09]} Rg5 {[%emt 0:00:39]} 36. Rhxg5+ {[%emt 0:00:02]} fxg5 {[%emt 0:00:01]} 37. Rxg5+ {[%emt 0:00:16]} Kf6 {[%emt 0:00:01]} 38. Rh5 {[%emt 0:00:07]} c3+ {[%emt 0:00:01]} 39. Kc1 {[%emt 0:00:08]} Bb3 {[%emt 0:00:25]} 40. Rh6+ {[%emt 0:00:16]} Kg5 {[%emt 0:00:03]} 0-1

[Event "RUS-ch Rapid Men 2018"]
[Site "Sochi"]
[Date "2018.10.06"]
[Round "11"]
[White "Chigaev, Maksim"]
[Black "Moiseenko, Vadim"]
[Result "0-1"]
[ECO "C59"]
[WhiteElo "2599"]
[BlackElo "2492"]
[Annotator "ChessBase"]
[PlyCount "86"]
[EventDate "2018.10.05"]
[EventType "swiss"]
[EventCountry "RUS"]
[SourceTitle "playchess.com"]
[Source "ChessBase"]
[SourceQuality "1"]
[TimeControl "900+10"]

1. e4 {[%emt 0:00:00]} e5 {[%emt 0:01:30]} 2. Nf3 {[%emt 0:00:00]} Nc6 {[%emt 0:00:01]} 3. Bc4 {[%emt 0:00:05]} Nf6 {[%emt 0:00:05]} 4. Ng5 {[%emt 0:00:04]} d5 {[%emt 0:00:02]} 5. exd5 {[%emt 0:00:01]} Na5 {[%emt 0:00:01]} 6. Bb5+ {[%emt 0:00:02]} c6 {[%emt 0:00:01]} 7. dxc6 {[%emt 0:00:01]} bxc6 {[%emt 0:00:01]} 8. Be2 {[%emt 0:00:02]} h6 {[%emt 0:00:06]} 9. Nh3 {[%emt 0:00:01]} Bc5 {[%emt 0:00:17]} 10. Nc3 {[%emt 0:00:15]} O-O {[%emt 0:01:37]} 11. d3 {[%emt 0:00:05]} Rb8 {[%emt 0:00:23]} 12. O-O {[%emt 0:00:14]} Bf5 {[%emt 0:00:48]} 13. Kh1 {[%emt 0:00:02]} Bb6 {[%emt 0:00:57]} 14. f4 {[%emt 0:04:46]} e4 {[%emt 0:00:34]} 15. g4 {[%emt 0:00:03]} exd3 {[%emt 0:00:06]} 16. cxd3 {[%emt 0:00:01]} Bc8 {[%emt 0:00:57]} 17. f5 {[%emt 0:00:06]} Bc7 {[%emt 0:00:12]} 18. g5 {[%emt 0:02:53]} hxg5 {[%emt 0:00:24]} 19. Nxg5 {[%emt 0:00:03]} Rb4 {[%emt 0:02:12]} 20. Nce4 {[%emt 0:01:06]} Rb5 {[%emt 0:02:37]} 21. Bg4 {[%emt 0:01:29]} Rd5 {[%emt 0:00:01]} 22. Nxf6+ {[%emt 0:01:26]} Qxf6 {[%emt 0:00:10]} 23. Ne4 {[%emt 0:00:01]} Qh4 {[%emt 0:00:42]} 24. h3 {[%emt 0:02:18]} Ba6 {[%emt 0:01:14]} 25. Bg5 {[%emt 0:02:35]} Qh7 {[%emt 0:00:01]} 26. Qf3 {[%emt 0:00:41]} Bxd3 {[%emt 0:00:25]} 27. Rfd1 {[%emt 0:00:36]} Nc4 {[%emt 0:00:01]} 28. Bf4 {[%emt 0:00:23]} Bxf4 {[%emt 0:01:16]} 29. Qxf4 {[%emt 0:00:01]} Rfd8 {[%emt 0:00:13]} 30. Nf2 {[%emt 0:00:22]} Ne5 {[%emt 0:00:34]} 31. Nxd3 {[%emt 0:00:13]} Nxd3 {[%emt 0:00:02]} 32. Qe3 {[%emt 0:00:11]} Qh4 {[%emt 0:00:30]} 33. Rf1 {[%emt 0:00:01]} Rd4 {[%emt 0:01:01]} 34. Kg2 {[%emt 0:00:06]} Nxb2 {[%emt 0:00:17]} 35. Rae1 {[%emt 0:00:21]} Nd3 {[%emt 0:00:23]} 36. Re2 {[%emt 0:00:09]} c5 {[%emt 0:00:07]} 37. f6 {[%emt 0:00:04]} gxf6 {[%emt 0:00:02]} 38. Bf5 {[%emt 0:00:08]} Nf4+ {[%emt 0:00:06]} 39. Kh1 {[%emt 0:00:09]} Nxe2 {[%emt 0:00:27]} 40. Qxe2 {[%emt 0:00:01]} Kf8 {[%emt 0:00:16]} 41. Rg1 {[%emt 0:00:31]} R4d5 {[%emt 0:00:40]} 42. Qf3 {[%emt 0:00:11]} Re5 {[%emt 0:00:16]} 43. Bb1 {[%emt 0:00:10]} Re1 {[%emt 0:00:03]} 0-1

[Event "RUS-ch Rapid Men 2018"]
[Site "Sochi"]
[Date "2018.10.06"]
[Round "11"]
[White "Panarin, Mikhail"]
[Black "Kirillov, Dmitry"]
[Result "1-0"]
[ECO "B81"]
[WhiteElo "2562"]
[BlackElo "2267"]
[Annotator "ChessBase"]
[PlyCount "107"]
[EventDate "2018.10.05"]
[EventType "swiss"]
[EventCountry "RUS"]
[SourceTitle "playchess.com"]
[Source "ChessBase"]
[SourceQuality "1"]
[TimeControl "900+10"]

1. e4 {[%emt 0:00:00]} c5 {[%emt 0:00:00]} 2. Nf3 {[%emt 0:00:00]} e6 {[%emt 0:00:00]} 3. d4 {[%emt 0:00:00]} cxd4 {[%emt 0:00:00]} 4. Nxd4 {[%emt 0:00:00]} Nf6 {[%emt 0:00:00]} 5. Nc3 {[%emt 0:00:00]} d6 {[%emt 0:00:00]} 6. g4 {[%emt 0:00:20]} a6 {[%emt 0:00:00]} 7. g5 {[%emt 0:00:04]} Nfd7 {[%emt 0:00:00]} 8. Be3 {[%emt 0:00:13]} Qc7 {[%emt 0:00:02]} 9. h4 {[%emt 0:00:18]} b5 {[%emt 0:00:05]} 10. a3 {[%emt 0:00:02]} Bb7 {[%emt 0:00:00]} 11. h5 {[%emt 0:00:22]} Nc6 {[%emt 0:00:09]} 12. Rh3 {[%emt 0:01:51]} Nde5 {[%emt 0:00:10]} 13. f4 {[%emt 0:02:31]} Nc4 {[%emt 0:00:11]} 14. Bxc4 {[%emt 0:00:03]} bxc4 {[%emt 0:00:00]} 15. Qe2 {[%emt 0:00:33]} Nxd4 {[%emt 0:02:47]} 16. Bxd4 {[%emt 0:00:02]} h6 {[%emt 0:01:23]} 17. O-O-O {[%emt 0:01:14]} Rb8 {[%emt 0:04:36]} 18. Rg3 {[%emt 0:03:42]} e5 {[%emt 0:03:38]} 19. Nd5 {[%emt 0:00:02]} Bxd5 {[%emt 0:01:06]} 20. exd5 {[%emt 0:00:02]} f6 {[%emt 0:00:11]} 21. gxf6 {[%emt 0:00:03]} gxf6 {[%emt 0:00:02]} 22. Bc3 {[%emt 0:00:09]} Rh7 {[%emt 0:01:17]} 23. Rdg1 {[%emt 0:00:26]} Rf7 {[%emt 0:00:54]} 24. Rg8 {[%emt 0:01:03]} Qc5 {[%emt 0:00:21]} 25. fxe5 {[%emt 0:02:58]} fxe5 {[%emt 0:00:09]} 26. Bxe5 {[%emt 0:00:01]} Kd8 {[%emt 0:00:37]} 27. R1g7 {[%emt 0:02:10]} Rbb7 {[%emt 0:00:32]} 28. Rxf7 {[%emt 0:01:07]} Rxf7 {[%emt 0:00:02]} 29. Bc3 {[%emt 0:00:13]} Qxd5 {[%emt 0:00:04]} 30. Kb1 {[%emt 0:00:04]} Rf1+ {[%emt 0:01:03]} 31. Qxf1 {[%emt 0:00:04]} Qxg8 {[%emt 0:00:02]} 32. Qf5 {[%emt 0:00:07]} Be7 {[%emt 0:00:30]} 33. Qa5+ {[%emt 0:00:01]} Kd7 {[%emt 0:00:12]} 34. Qa4+ {[%emt 0:00:01]} Kc7 {[%emt 0:00:24]} 35. Ba5+ {[%emt 0:00:07]} Kb8 {[%emt 0:00:12]} 36. Qc6 {[%emt 0:00:10]} Qc8 {[%emt 0:00:06]} 37. Qd5 {[%emt 0:00:14]} Qc5 {[%emt 0:00:09]} 38. Qg8+ {[%emt 0:00:18]} Kb7 {[%emt 0:00:13]} 39. Bb4 {[%emt 0:00:02]} Qxh5 {[%emt 0:00:07]} 40. Qxc4 {[%emt 0:00:17]} Qh1+ {[%emt 0:00:09]} 41. Ka2 {[%emt 0:00:03]} Qc6 {[%emt 0:00:04]} 42. Qe6 {[%emt 0:00:12]} Qc7 {[%emt 0:00:08]} 43. Kb1 {[%emt 0:00:13]} Ka7 {[%emt 0:00:19]} 44. Qxh6 {[%emt 0:00:05]} Kb7 {[%emt 0:00:04]} 45. Qe6 {[%emt 0:00:02]} Ka7 46. Bc3 {[%emt 0:00:02]} Kb7 {[%emt 0:00:07]} 47. Bd4 {[%emt 0:00:02]} Kb8 {[%emt 0:00:21]} 48. c4 {[%emt 0:00:12]} Qb7 {[%emt 0:00:07]} 49. Ka2 {[%emt 0:00:16]} a5 {[%emt 0:00:02]} 50. Qg8+ {[%emt 0:00:07]} Qc8 {[%emt 0:00:00]} 51. Qd5 {[%emt 0:00:07]} Qa6 {[%emt 0:00:20]} 52. Qg8+ {[%emt 0:00:20]} Qc8 {[%emt 0:00:01]} 53. Qf7 {[%emt 0:00:02]} Qb7 {[%emt 0:00:04]} 54. Qe8+ {[%emt 0:00:04]} 1-0